bitfinex/quotes_SOLUSD_20230903
["timestamp","ask_amount","ask_price","bid_price","bid_amount"]
[1693781583579,55.0,19.536,19.521,55.0]
[1693781586880,62.985,19.536,19.52,52.7]
[1693781589185,55.0,19.536,19.52,52.7]
[1693781589385,62.985,19.536,19.52,52.7]
[1693781599494,55.0,19.536,19.52,52.7]
[1693781602080,95.32803689,19.536,19.52,52.7]
[1693781609584,55.0,19.536,19.52,52.7]
[1693781609790,55.0,19.536,19.521,55.0]
[1693781611289,26.35,19.54,19.522,20.0]
[1693781611489,99.2932,19.54,19.523,55.0]
[1693781611693,99.2932,19.54,19.524,20.0]
[1693781611893,99.2932,19.54,19.525,55.0]
[1693781612807,55.0,19.539,19.525,55.0]
[1693781628416,55.0,19.539,19.524,20.0]
[1693781628615,55.0,19.539,19.525,55.0]
[1693781634618,55.0,19.539,19.521,20.0]
[1693781634921,55.0,19.539,19.522,55.0]
[1693781635120,55.0,19.539,19.523,20.0]
[1693781635511,55.0,19.539,19.524,55.0]
[1693781649538,55.0,19.539,19.523,20.0]
[1693781649734,86.55938012,19.539,19.521,20.0]
[1693781650038,23.57538012,19.538,19.521,20.0]
[1693781650337,55.0,19.537,19.521,20.0]
[1693781650540,78.57538012,19.537,19.521,20.0]
[1693781651037,91.7443,19.536,19.521,20.0]
[1693781651231,55.0,19.535,19.521,20.0]
[1693781654031,55.0,19.535,19.52,52.7]
[1693781661932,70.3319672,19.535,19.52,52.7]
[1693781677057,78.3169672,19.535,19.52,52.7]
[1693781677267,78.3169672,19.535,19.52,26.35]
[1693781680257,78.3169672,19.535,19.519,0.99999011]
[1693781683761,70.3319672,19.535,19.519,0.99999011]
[1693781684769,78.3169672,19.535,19.519,0.99999011]
[1693781687767,78.3169672,19.535,19.515,0.99999011]
[1693781687968,78.3169672,19.535,19.515,55.99999011]
[1693781688365,26.35,19.53,19.515,55.99999011]
[1693781688566,55.0,19.529,19.515,111.99998011]
[1693781702680,55.0,19.529,19.515,56.99998011]
[1693781709973,15.3319672,19.535,19.516,55.0]
[1693781710178,15.3319672,19.535,19.517,0.99999011]
[1693781710691,23.3169672,19.535,19.517,0.99999011]
[1693781711293,55.0,19.534,19.517,0.99999011]
[1693781715602,62.986,19.534,19.517,0.99999011]
[1693781719798,62.986,19.534,19.516,0.99999011]
[1693781725405,89.73930486,19.534,19.516,0.99999011]
[1693781728104,26.35,19.53,19.516,0.99999011]
[1693781728289,55.0,19.529,19.516,0.99999011]
[1693781728488,62.988,19.529,19.514,58.989999]
[1693781728704,62.988,19.529,19.515,0.99999011]
[1693781728705,55.0,19.529,19.515,0.99999011]
[1693781729291,92.4599,19.528,19.515,0.99999011]
[1693781729493,55.0,19.527,19.515,0.99999011]
[1693781736190,55.0,19.527,19.51,100.65368478]
[1693781736191,55.0,19.527,19.511,20.99999011]
[1693781736408,55.0,19.527,19.511,79.98998961]
[1693781736609,55.0,19.527,19.511,172.44988961]
[1693781738497,55.0,19.527,19.511,79.98998961]
[1693781743309,55.0,19.527,19.511,105.69402823]
[1693781753533,92.4599,19.528,19.511,105.69402823]
[1693781753725,92.4599,19.528,19.512,139.69403812]
[1693781754040,92.4599,19.528,19.52,26.35]
[1693781755343,92.4599,19.528,19.514,0.99999011]
[1693781755543,92.4599,19.528,19.514,114.98998961]
[1693781755739,92.4599,19.528,19.519,26.35]
[1693781755946,92.4599,19.528,19.52,26.35]
[1693781758742,401.4,19.535,19.521,55.0]
[1693781758933,97.6328,19.537,19.521,55.0]
[1693781759134,75.0,19.536,19.521,55.0]
[1693781770256,75.0,19.536,19.52,26.35]
[1693781771657,82.985,19.536,19.52,26.35]
[1693781774253,106.56038012,19.536,19.52,26.35]
[1693781778960,98.57538012,19.536,19.52,26.35]
[1693781781762,139.06308503,19.536,19.52,26.35]
[1693781783160,147.04808503,19.536,19.52,26.35]
[1693781785056,23.57538012,19.535,19.518,0.99999011]
[1693781785259,7.987,19.531,19.515,0.99999011]
[1693781785460,55.0,19.53,19.515,0.99999011]
[1693781785957,55.0,19.53,19.515,55.0]
[1693781786151,55.0,19.53,19.516,0.99999011]
[1693781786569,92.9144,19.529,19.516,0.99999011]
[1693781786762,55.0,19.528,19.516,0.99999011]
[1693781791269,55.0,19.528,19.513,0.99999011]
[1693781791668,55.0,19.528,19.513,55.99999011]
[1693781791971,55.0,19.528,19.514,20.0]
[1693781792155,55.0,19.528,19.515,0.99999011]
[1693781821793,112.37238012,19.528,19.515,0.99999011]
[1693781822407,86.56338012,19.528,19.515,0.99999011]
[1693781822613,86.56338012,19.528,19.512,0.99999011]
[1693781823508,78.57538012,19.528,19.512,0.99999011]
[1693781824408,55.0,19.528,19.512,0.99999011]
[1693781827099,92.9144,19.529,19.512,0.99999011]
[1693781827404,92.9144,19.529,19.512,114.98998961]
[1693781827608,92.9144,19.529,19.513,20.0]
[1693781827810,92.9144,19.529,19.514,55.99999011]
[1693781828499,55.0,19.528,19.514,55.99999011]
[1693781850024,92.9144,19.529,19.514,55.99999011]
[1693781850224,92.9144,19.529,19.52,26.35]
[1693781855535,92.9144,19.529,19.518,0.99999011]
[1693781855914,92.9144,19.529,19.515,0.99999011]
[1693781856936,92.9144,19.529,19.515,55.99999011]
[1693781857234,92.9144,19.529,19.516,55.0]
[1693781857419,92.9144,19.529,19.517,0.99999011]
[1693781857619,7.986,19.532,19.517,0.99999011]
[1693781857815,147.2786,19.531,19.517,0.99999011]
[1693781865836,155.2656,19.531,19.517,0.99999011]
[1693781866333,26.35,19.53,19.517,0.99999011]
[1693781866631,55.0,19.529,19.517,0.99999011]
[1693781867636,62.988,19.529,19.517,0.99999011]
[1693781867823,61.988,19.529,19.514,0.99999011]
[1693781871833,54.0,19.529,19.514,0.99999011]
[1693781873125,54.0,19.529,19.513,1.99999011]
[1693781873320,54.0,19.529,19.513,21.99999011]
[1693781873634,54.0,19.529,19.514,58.9899995]
[1693781873829,55.0,19.53,19.515,1.99999011]
[1693781874220,92.2786,19.531,19.515,1.99999011]
[1693781874428,92.2786,19.531,19.52,26.35]
[1693781874631,92.2786,19.531,19.521,1.99999011]
[1693781874936,20.0,19.536,19.521,82.70402873]
[1693781875138,99.4959,19.535,19.521,82.70402873]
[1693781875733,20.0,19.537,19.521,82.70402873]
[1693781875925,99.4959,19.536,19.521,82.70402873]
[1693781876125,55.0,19.535,19.521,82.70402873]
[1693781876734,55.0,19.536,19.521,82.70402873]
[1693781880541,55.0,19.536,19.521,56.99999011]
[1693781883643,55.0,19.536,19.521,1.99999011]
[1693781889850,62.985,19.536,19.521,1.99999011]
[1693781893332,55.0,19.536,19.521,1.99999011]
[1693781902159,62.985,19.536,19.521,1.99999011]
[1693781905363,55.0,19.536,19.521,1.99999011]
[1693781907765,98.8028,19.537,19.521,56.99999011]
[1693781907963,20.0,19.536,19.521,56.99999011]
[1693781941199,98.8028,19.537,19.521,56.99999011]
[1693781941499,20.0,19.536,19.521,56.99999011]
[1693781941704,20.0,19.537,19.521,56.99999011]
[1693781950921,55.0,19.536,19.521,56.99999011]
[1693781969835,20.0,19.537,19.521,56.99999011]
[1693781981848,27.984,19.537,19.521,56.99999011]
[1693781984448,27.984,19.537,19.521,1.99999011]
[1693781984747,55.0,19.536,19.521,1.99999011]
[1693781985747,55.0,19.536,19.521,56.99999011]
[1693781994854,55.0,19.536,19.521,1.99999011]
[1693781995156,55.0,19.536,19.521,56.99999011]
[1693782002865,27.985,19.537,19.521,56.99999011]
[1693782003066,50.32477976,19.541,19.521,56.99999011]
[1693782003267,453.17737299,19.544,19.521,115.99191961]
[1693782003268,401.4,19.544,19.521,115.99191961]
[1693782003467,416.99200409,19.544,19.53,26.35]
[1693782003764,93.3703,19.545,19.53,26.35]
[1693782004458,55.0,19.544,19.53,26.35]
[1693782004654,55.0,19.544,19.527,1.99999011]
[1693782004859,55.0,19.544,19.527,56.99999011]
[1693782005761,7.982,19.543,19.527,56.99999011]
[1693782005954,55.0,19.542,19.527,56.99999011]
[1693782006953,55.0,19.543,19.527,56.99999011]
[1693782007464,55.0,19.544,19.527,56.99999011]
[1693782008059,62.982,19.544,19.527,56.99999011]
[1693782008950,55.0,19.544,19.527,56.99999011]
[1693782009551,62.982,19.544,19.527,56.99999011]
[1693782009759,86.55738012,19.544,19.527,1.99999011]
[1693782009967,23.57538012,19.543,19.523,1.99999011]
[1693782010151,55.0,19.542,19.523,56.99999011]
[1693782010350,55.0,19.542,19.524,20.0]
[1693782010565,55.0,19.542,19.525,56.99999011]
[1693782015963,26.35,19.54,19.525,56.99999011]
[1693782016362,55.0,19.542,19.525,56.99999011]
[1693782016558,26.35,19.54,19.525,56.99999011]
[1693782028175,55.0,19.539,19.525,1.99999011]
[1693782031075,150.7142,19.539,19.525,1.99999011]
[1693782043983,95.7142,19.539,19.525,1.99999011]
[1693782044172,95.7142,19.539,19.525,56.99999011]
[1693782045283,95.7142,19.539,19.525,1.99999011]
[1693782045480,55.0,19.538,19.525,1.99999011]
[1693782046078,95.7142,19.539,19.525,1.99999011]
[1693782046279,95.7142,19.539,19.525,56.99999011]
[1693782048283,95.7142,19.539,19.525,1.99999011]
[1693782048476,55.0,19.538,19.525,1.99999011]
[1693782062399,20.0,19.537,19.525,1.99999011]
[1693782062601,55.0,19.536,19.521,1.99999011]
[1693782064008,55.0,19.536,19.521,28.34999011]
[1693782066813,55.0,19.537,19.521,28.34999011]
[1693782067011,20.0,19.536,19.521,1.99999011]
[1693782067218,55.0,19.535,19.521,1.99999011]
[1693782084928,55.0,19.535,19.521,27.70402873]
[1693782097548,62.985,19.535,19.521,1.99999011]
[1693782097846,62.985,19.535,19.518,1.99999011]
[1693782098230,62.985,19.535,19.514,21.99999011]
[1693782098441,62.985,19.535,19.514,47.70402873]
[1693782098641,62.985,19.535,19.515,55.0]
[1693782098838,62.985,19.535,19.516,1.99999011]
[1693782100132,26.35,19.53,19.516,1.99999011]
[1693782100333,55.0,19.529,19.516,1.99999011]
[1693782100532,148.1472,19.529,19.516,1.99999011]
[1693782126859,93.1472,19.529,19.516,27.61478999]
[1693782127055,93.1472,19.529,19.517,25.61479988]
[1693782127259,93.1472,19.529,19.52,26.35]
[1693782127465,93.1472,19.529,19.521,1.99999011]
[1693782130273,93.1472,19.529,19.521,1.49999011]
[1693782131274,93.1472,19.529,19.518,1.49999011]
[1693782131571,93.1472,19.529,19.518,56.49999011]
[1693782133855,20.0,19.536,19.518,56.49999011]
[1693782134055,55.5,19.535,19.518,56.49999011]
[1693782137671,63.485,19.535,19.518,56.49999011]
[1693782149681,55.5,19.535,19.518,56.49999011]
[1693782150182,63.485,19.535,19.518,56.49999011]
[1693782151164,104.02598359,19.535,19.518,56.49999011]
[1693782152064,96.04098359,19.535,19.518,56.49999011]
[1693782153977,104.02598359,19.535,19.518,56.49999011]
[1693782158173,104.02598359,19.535,19.518,1.49999011]
[1693782158574,104.02598359,19.535,19.518,56.49999011]
[1693782161396,96.04098359,19.535,19.518,56.49999011]
[1693782162395,104.02598359,19.535,19.518,56.49999011]
[1693782169500,96.04098359,19.535,19.518,56.49999011]
[1693782174500,55.5,19.535,19.518,56.49999011]
[1693782174805,55.5,19.535,19.518,82.11478999]
[1693782179209,55.5,19.535,19.518,27.11478999]
[1693782179505,55.5,19.535,19.518,1.49999011]
[1693782179709,55.5,19.535,19.517,1.49999011]
[1693782179909,63.485,19.535,19.517,1.49999011]
[1693782180696,63.485,19.535,19.517,56.49999011]
[1693782181909,55.5,19.535,19.517,56.49999011]
[1693782182602,55.5,19.535,19.521,1.49999011]
[1693782197325,63.485,19.535,19.521,1.49999011]
[1693782197507,63.485,19.535,19.518,1.49999011]
[1693782197926,86.98022548,19.535,19.518,1.49999011]
[1693782200315,86.98022548,19.535,19.517,1.49999011]
[1693782200828,86.98022548,19.535,19.514,82.985]
[1693782200829,86.98022548,19.535,19.515,1.49999011]
[1693782201820,86.98022548,19.535,19.515,56.49999011]
[1693782204727,113.73369133,19.535,19.515,56.49999011]
[1693782204931,0.5,19.535,19.52,26.35]
[1693782205114,0.5,19.535,19.521,1.49999011]
[1693782205436,0.5,19.536,19.521,1.49999011]
[1693782206626,55.5,19.536,19.521,1.49999011]
[1693782232132,55.5,19.536,19.521,56.49999011]
[1693782236653,7.985,19.535,19.521,56.49999011]
[1693782236844,0.5,19.534,19.521,56.49999011]
[1693782237350,0.5,19.535,19.521,56.49999011]
[1693782238552,8.485,19.535,19.521,56.49999011]
[1693782244846,0.5,19.535,19.521,56.49999011]
[1693782246661,0.5,19.535,19.521,1.49999011]
[1693782246862,8.485,19.535,19.521,1.49999011]
[1693782247062,55.0,19.534,19.521,1.49999011]
[1693782247360,0.5,19.533,19.521,1.49999011]
[1693782253263,0.5,19.533,19.52,1.49999011]
[1693782279087,0.5,19.533,19.52,27.84999011]
[1693782279288,0.5,19.535,19.521,55.0]
[1693782279479,0.5,19.535,19.522,1.49999011]
[1693782279480,55.5,19.535,19.522,1.49999011]
[1693782280482,63.485,19.535,19.522,1.49999011]
[1693782295115,55.5,19.535,19.522,1.49999011]
[1693782297105,55.5,19.535,19.521,55.0]
[1693782301508,0.5,19.535,19.521,55.0]
[1693782301910,55.5,19.535,19.521,55.0]
[1693782302909,63.485,19.535,19.521,55.0]
[1693782312100,55.5,19.535,19.521,55.0]
[1693782312409,0.5,19.535,19.521,55.0]
[1693782312611,1.0,19.536,19.521,55.0]
[1693782312918,56.0,19.536,19.521,80.61479988]
[1693782316213,63.985,19.536,19.521,80.61479988]
[1693782320210,56.0,19.536,19.521,80.61479988]
[1693782327101,56.0,19.536,19.521,55.0]
[1693782328415,63.985,19.536,19.519,26.35]
[1693782329721,89.783,19.536,19.519,26.35]
[1693782332223,63.985,19.536,19.519,26.35]
[1693782343225,56.0,19.536,19.519,26.35]
[1693782347723,56.0,19.536,19.519,51.96479988]
[1693782352921,56.0,19.536,19.52,26.35]
[1693782354230,63.985,19.536,19.52,26.35]
[1693782355331,89.783,19.536,19.517,0.99999011]
[1693782355513,89.783,19.536,19.517,55.99999011]
[1693782356221,89.783,19.536,19.517,114.99192011]
[1693782361422,89.783,19.536,19.517,0.99999011]
[1693782362923,130.23791802,19.536,19.517,0.99999011]
[1693782367937,26.75567889,19.535,19.517,0.99999011]
[1693782368240,7.986,19.533,19.517,0.99999011]
[1693782368438,150.8997,19.532,19.517,0.99999011]
[1693782368845,158.8857,19.532,19.517,0.99999011]
[1693782369825,158.8857,19.532,19.516,0.99999011]
[1693782372137,26.35,19.53,19.516,0.99999011]
[1693782372345,55.0,19.529,19.516,0.99999011]
[1693782372831,1.0,19.528,19.516,0.99999011]
[1693782374442,55.0,19.529,19.516,0.99999011]
[1693782378443,1.0,19.528,19.516,0.99999011]
[1693782397344,1.0,19.528,19.512,0.99999011]
[1693782397546,1.0,19.528,19.512,20.99999011]
[1693782403664,1.0,19.528,19.512,0.99999011]
[1693782403865,21.0,19.528,19.512,0.99999011]
[1693782404069,55.0,19.527,19.511,0.99999011]
[1693782404370,21.0,19.526,19.511,0.99999011]
[1693782404550,1.0,19.524,19.511,0.99999011]
[1693782420570,8.99,19.524,19.511,0.99999011]
[1693782420877,1.0,19.522,19.511,0.99999011]
[1693782421966,55.0,19.523,19.511,0.99999011]
[1693782422367,1.0,19.522,19.511,0.99999011]
[1693782423884,55.0,19.523,19.511,0.99999011]
[1693782424181,1.0,19.523,19.511,0.99999011]
[1693782426993,1.0,19.523,19.511,55.99999011]
[1693782427174,1.0,19.524,19.511,55.99999011]
[1693782427374,92.9198,19.525,19.511,55.99999011]
[1693782427574,20.0,19.526,19.511,55.99999011]
[1693782427890,0.56476633,19.525,19.511,55.99999011]
[1693782428191,1.0,19.526,19.511,55.99999011]
[1693782428374,56.0,19.526,19.511,0.99999011]
[1693782428770,56.0,19.526,19.511,55.99999011]
[1693782437394,1.0,19.526,19.512,20.0]
[1693782437582,56.0,19.527,19.513,0.99999011]
[1693782438880,56.0,19.527,19.513,55.99999011]
[1693782439075,56.0,19.527,19.514,20.0]
[1693782439396,56.0,19.527,19.515,0.99999011]
[1693782474914,1.0,19.527,19.515,0.99999011]
[1693782475218,56.0,19.527,19.515,0.99999011]
[1693782481620,1.0,19.527,19.515,0.99999011]
[1693782481808,1.0,19.528,19.52,26.35]
[1693782482123,1.0,19.535,19.52,26.35]
[1693782482310,1.0,19.535,19.521,55.0]
[1693782483405,56.0,19.535,19.52,52.7]
[1693782483612,56.0,19.535,19.52,26.35]
[1693782483813,155.2624,19.535,19.52,26.35]
[1693782484720,155.2624,19.535,19.52,52.7]
[1693782484919,155.2624,19.535,19.52,26.35]
[1693782485229,163.2474,19.535,19.515,0.99999011]
[1693782485538,186.74262548,19.535,19.517,78.991929]
[1693782485711,186.74262548,19.535,19.518,55.99999011]
[1693782487614,186.74262548,19.535,19.518,0.99999011]
[1693782487815,186.74262548,19.535,19.515,0.99999011]
[1693782488034,186.74262548,19.535,19.515,55.99999011]
[1693782488629,186.74262548,19.535,19.515,134.99192011]
[1693782489141,178.75762548,19.535,19.515,134.99192011]
[1693782489730,186.74262548,19.535,19.515,134.99192011]
[1693782498536,228.54682844,19.535,19.515,134.99192011]
[1693782499432,220.56182844,19.535,19.515,134.99192011]
[1693782502538,197.06660296,19.535,19.515,134.99192011]
[1693782504139,155.2624,19.535,19.515,134.99192011]
[1693782506033,163.2474,19.535,19.515,134.99192011]
[1693782519053,26.35,19.53,19.515,0.99999011]
[1693782519348,56.0,19.529,19.515,0.99999011]
[1693782519541,154.0268,19.529,19.512,0.99999011]
[1693782519747,154.0268,19.529,19.515,0.99999011]
[1693782524653,153.0268,19.529,19.515,0.99999011]
[1693782525358,0.86147113,19.528,19.515,0.99999011]
[1693782526058,98.0268,19.529,19.515,55.99999011]
[1693782526462,40.63147103,19.536,19.515,55.99999011]
[1693782526657,21.0,19.535,19.515,55.99999011]
[1693782527255,1.0,19.535,19.515,55.99999011]
[1693782527560,7.985,19.535,19.515,55.99999011]
[1693782527748,56.0,19.534,19.515,55.99999011]
[1693782530783,1.0,19.534,19.515,55.99999011]
[1693782540472,41.24590163,19.534,19.515,55.99999011]
[1693782540655,55.0,19.533,19.515,55.99999011]
[1693782540854,1.0,19.532,19.515,55.99999011]
[1693782545473,1.0,19.532,19.515,97.66802288]
[1693782547874,1.0,19.532,19.515,55.99999011]
[1693782559385,1.0,19.532,19.52,26.35]
[1693782559591,1.0,19.536,19.521,55.0]
[1693782559886,21.0,19.536,19.521,55.0]
[1693782560089,1.0,19.536,19.521,55.0]
[1693782560386,1.0,19.537,19.521,55.0]
[1693782560686,1.0,19.537,19.521,110.0]
[1693782560885,56.0,19.537,19.521,110.0]
[1693782561070,1.0,19.535,19.521,110.0]
[1693782566292,1.0,19.535,19.521,55.0]
[1693782566486,56.0,19.535,19.52,26.35]
[1693782572188,1.0,19.535,19.52,26.35]
[1693782572388,76.0,19.535,19.521,55.0]
[1693782572591,56.0,19.535,19.521,55.0]
[1693782575881,56.0,19.535,19.516,0.99999011]
[1693782576397,56.0,19.535,19.513,20.99999011]
[1693782576693,56.0,19.535,19.513,82.84109011]
[1693782577501,56.0,19.535,19.514,55.0]
[1693782577686,56.0,19.535,19.515,0.99999011]
[1693782578392,71.26127048,19.535,19.515,0.99999011]
[1693782587515,168.08717048,19.535,19.515,0.99999011]
[1693782590827,26.35,19.53,19.515,0.99999011]
[1693782598522,1.0,19.529,19.515,0.99999011]
[1693782598724,26.35,19.53,19.515,0.99999011]
[1693782599229,1.0,19.529,19.515,0.99999011]
[1693782599724,26.35,19.53,19.515,0.99999011]
[1693782600113,1.0,19.529,19.515,0.99999011]
[1693782600517,26.35,19.53,19.515,0.99999011]
[1693782600716,1.0,19.529,19.515,0.99999011]
[1693782600920,26.35,19.53,19.515,0.99999011]
[1693782601115,1.0,19.529,19.515,0.99999011]
[1693782602027,26.35,19.53,19.515,0.99999011]
[1693782602531,99.9221,19.529,19.515,0.99999011]
[1693782609638,55.0,19.528,19.514,0.99999011]
[1693782609840,1.0,19.527,19.514,0.99999011]
[1693782622252,55.0,19.528,19.514,0.99999011]
[1693782623848,0.72580222,19.527,19.514,0.99999011]
[1693782625547,55.0,19.528,19.514,0.99999011]
[1693782629241,0.58541311,19.527,19.514,0.99999011]
[1693782631549,55.0,19.528,19.514,0.99999011]
[1693782631755,0.60627337,19.527,19.514,0.99999011]
[1693782634052,55.0,19.528,19.514,0.99999011]
[1693782634252,0.56545078,19.527,19.514,0.99999011]
[1693782634751,55.0,19.528,19.514,0.99999011]
[1693782637158,0.65133699,19.527,19.511,0.99999011]
[1693782637353,55.0,19.528,19.511,75.99999011]
[1693782637540,55.0,19.528,19.511,20.99999011]
[1693782637742,0.56855426,19.527,19.511,20.99999011]
[1693782637940,0.56855426,19.527,19.511,102.34999011]
[1693782638157,55.0,19.528,19.511,102.34999011]
[1693782638459,55.0,19.527,19.511,102.34999011]
[1693782638664,55.0,19.529,19.511,102.34999011]
[1693782639352,0.6951965,19.528,19.511,102.34999011]
[1693782652278,0.6951965,19.528,19.511,82.34999011]
[1693782652470,7.989,19.527,19.511,0.99999011]
[1693782652765,76.0,19.526,19.51,0.99999011]
[1693782652968,76.0,19.526,19.51,26.35]
[1693782653171,76.0,19.526,19.511,0.99999011]
[1693782658870,1.0,19.526,19.511,0.99999011]
[1693782659073,1.0,19.526,19.511,55.99999011]
[1693782659482,21.0,19.526,19.511,55.99999011]
[1693782659879,20.0,19.525,19.511,55.99999011]
[1693782660083,1.0,19.524,19.511,55.99999011]
[1693782660278,1.0,19.526,19.511,55.99999011]
[1693782666987,56.0,19.526,19.511,0.99999011]
[1693782667193,20.0,19.525,19.511,0.99999011]
[1693782667485,1.0,19.524,19.511,0.99999011]
[1693782668273,1.0,19.524,19.511,55.99999011]
[1693782673582,56.0,19.524,19.511,0.99999011]
[1693782673993,1.0,19.524,19.511,0.99999011]
[1693782674387,1.0,19.526,19.511,0.99999011]
[1693782674588,56.0,19.526,19.511,0.99999011]
[1693782674787,56.0,19.526,19.511,55.99999011]
[1693782674996,20.0,19.525,19.511,55.99999011]
[1693782675198,1.0,19.524,19.511,55.99999011]
[1693782691026,1.0,19.524,19.511,0.99999011]
[1693782691232,1.0,19.524,19.511,55.99999011]
[1693782694025,56.0,19.524,19.511,0.99999011]
[1693782694923,56.0,19.524,19.508,0.99999011]
[1693782695621,63.99,19.524,19.508,0.99999011]
[1693782695826,26.35,19.52,19.506,0.99999011]
[1693782696322,26.35,19.52,19.504,0.99999011]
[1693782696830,26.35,19.52,19.505,58.990938]
[1693782697033,26.35,19.52,19.506,55.99999011]
[1693782698537,148.0588,19.524,19.506,55.99999011]
[1693782698733,1.0,19.523,19.506,55.99999011]
[1693782702535,26.35,19.52,19.506,0.99999011]
[1693782702737,55.0,19.519,19.506,0.99999011]
[1693782707541,55.0,19.519,19.504,0.99999011]
[1693782707738,55.0,19.519,19.504,55.99999011]
[1693782708240,55.0,19.519,19.504,114.99092811]
[1693782708541,0.73418574,19.518,19.504,114.99092811]
[1693782708839,55.0,19.519,19.504,0.99999011]
[1693782709138,0.8199844,19.518,19.504,0.99999011]
[1693782714446,0.8199844,19.518,19.504,55.99999011]
[1693782714655,55.0,19.519,19.504,55.99999011]
[1693782716345,96.66153845,19.519,19.504,55.99999011]
[1693782716942,0.51594995,19.518,19.504,55.99999011]
[1693782717656,96.66153845,19.519,19.504,55.99999011]
[1693782717945,0.80773486,19.518,19.504,55.99999011]
[1693782718538,0.80773486,19.518,19.504,0.99999011]
[1693782725751,0.80773486,19.518,19.504,55.99999011]
[1693782726441,96.66153845,19.519,19.504,55.99999011]
[1693782728957,96.66153845,19.519,19.504,0.99999011]
[1693782729254,0.59335585,19.518,19.504,0.99999011]
[1693782729556,96.66153845,19.519,19.504,0.99999011]
[1693782730240,0.93077348,19.518,19.504,0.99999011]
[1693782733655,55.0,19.519,19.504,0.99999011]
[1693782735044,26.35,19.52,19.504,59.990928]
[1693782735252,26.35,19.52,19.505,55.0]
[1693782735450,26.35,19.52,19.506,0.99999011]
[1693782753168,1.0,19.522,19.506,0.99999011]
[1693782753371,56.0,19.522,19.506,0.99999011]
[1693782770485,63.991,19.522,19.506,0.99999011]
[1693782771890,56.0,19.522,19.506,0.99999011]
[1693782777105,97.00923076,19.522,19.506,0.99999011]
[1693782778708,112.02461537,19.522,19.506,0.99999011]
[1693782796406,1.0,19.522,19.51,26.35]
[1693782796613,95.7363,19.523,19.511,0.99999011]
[1693782797013,0.667567,19.522,19.511,0.99999011]
[1693782797318,95.7363,19.523,19.511,0.99999011]
[1693782797510,95.7363,19.523,19.511,55.99999011]
[1693782797912,15.58277806,19.525,19.511,55.99999011]
[1693782798625,1.0,19.524,19.511,55.99999011]
[1693782799321,1.0,19.529,19.511,55.99999011]
[1693782799517,76.0,19.529,19.511,55.99999011]
[1693782800626,1.0,19.527,19.511,55.99999011]
[1693782800827,56.0,19.527,19.511,55.99999011]
[1693782801023,1.0,19.528,19.511,55.99999011]
[1693782801230,93.1523,19.528,19.511,55.99999011]
[1693782801427,55.0,19.527,19.511,55.99999011]
[1693782801616,1.0,19.526,19.511,55.99999011]
[1693782806330,1.0,19.528,19.512,20.0]
[1693782806520,1.0,19.528,19.513,55.99999011]
[1693782806831,1.0,19.529,19.513,55.99999011]
[1693782822847,26.35,19.53,19.513,55.99999011]
[1693782823543,0.90696578,19.529,19.513,55.99999011]
[1693782830338,0.90696578,19.529,19.513,67.85492011]
[1693782831443,26.35,19.53,19.513,67.85492011]
[1693782831645,1.0,19.529,19.513,67.85492011]
[1693782832058,26.35,19.53,19.513,67.85492011]
[1693782833145,1.0,19.529,19.513,67.85492011]
[1693782834451,26.35,19.53,19.513,67.85492011]
[1693782834748,26.35,19.53,19.514,11.85432]
[1693782834945,26.35,19.53,19.515,55.99999011]
[1693782835444,0.59025618,19.529,19.515,55.99999011]
[1693782836255,26.35,19.53,19.515,55.99999011]
[1693782836653,0.50690785,19.529,19.515,111.99998011]
[1693782836955,1.0,19.531,19.515,111.99998011]